[Event "*** Titled Tuesday Blitz"]
[Site "Chess.com"]
[Date "2021.02.09"]
[Round "9"]
[White "TST2014"]
[Black "mapleaff"]
[Result "1-0"]
[WhiteElo "2585"]
[BlackElo "2428"]
[TimeControl "180+1"]
[EndTime "11:43:36 PST"]
[Termination "TST2014 won by resignation"]

1. d4 {[%clk 0:03:00.9]} 1... Nf6 {[%clk 0:02:59.8]} 2. c4 {[%clk 0:03:00]} 2...
e6 {[%clk 0:03:00.1]} 3. Nf3 {[%clk 0:02:59.5]} 3... d5 {[%clk 0:03:00.3]} 4.
Nc3 {[%clk 0:02:59.2]} 4... Be7 {[%clk 0:03:00.3]} 5. Bf4 {[%clk 0:02:58.6]}
5... O-O {[%clk 0:02:59.9]} 6. e3 {[%clk 0:02:58.6]} 6... Nbd7 {[%clk
0:02:59.8]} 7. c5 {[%clk 0:02:58.2]} 7... c6 {[%clk 0:02:59.6]} 8. Bd3 {[%clk
0:02:56.9]} 8... b6 {[%clk 0:02:58.9]} 9. b4 {[%clk 0:02:56.5]} 9... a5 {[%clk
0:02:59.4]} 10. a3 {[%clk 0:02:56.7]} 10... Ba6 {[%clk 0:02:55.3]} 11. O-O
{[%clk 0:02:50.1]} 11... Bxd3 {[%clk 0:02:54.1]} 12. Qxd3 {[%clk 0:02:49]} 12...
Qc8 {[%clk 0:02:45.9]} 13. Rfb1 {[%clk 0:02:43.3]} 13... Qb7 {[%clk 0:02:28.9]}
14. h3 {[%clk 0:02:40.4]} 14... axb4 {[%clk 0:02:22.8]} 15. axb4 {[%clk
0:02:37.6]} 15... b5 {[%clk 0:02:13.1]} 16. Nd2 {[%clk 0:02:10]} 16... Rxa1
{[%clk 0:02:11.4]} 17. Rxa1 {[%clk 0:02:09.6]} 17... Ra8 {[%clk 0:02:12.3]} 18.
Qb1 {[%clk 0:02:09.2]} 18... Ra6 {[%clk 0:01:58.1]} 19. Nb3 {[%clk 0:02:06.2]}
19... Bd8 {[%clk 0:01:57.4]} 20. Ra2 {[%clk 0:01:58.1]} 20... Qa8 {[%clk
0:01:51.5]} 21. Rxa6 {[%clk 0:01:41]} 21... Qxa6 {[%clk 0:01:52.4]} 22. Qa2
{[%clk 0:01:37.2]} 22... Qxa2 {[%clk 0:01:49.1]} 23. Nxa2 {[%clk 0:01:38.1]}
23... Ne4 {[%clk 0:00:59]} 24. f3 {[%clk 0:01:25]} 24... g5 {[%clk 0:00:57.9]}
25. Bh2 {[%clk 0:01:22.6]} 25... Nef6 {[%clk 0:00:48]} 26. Na5 {[%clk
0:01:22.4]} 26... Kf8 {[%clk 0:00:11.1]} 27. Nxc6 {[%clk 0:01:18.7]} 27... Ke8
{[%clk 0:00:07.4]} 28. Nc3 {[%clk 0:01:17.2]} 28... h5 {[%clk 0:00:03.7]} 29.
Nxb5 {[%clk 0:01:16.7]} 29... g4 {[%clk 0:00:04.1]} 30. Nd6+ {[%clk 0:01:13.8]}
1-0

[Event "*** Titled Tuesday Blitz"]
[Site "Chess.com"]
[Date "2021.02.09"]
[Round "9"]
[White "MaevskiyNikolay"]
[Black "sopo-tereladze"]
[Result "1-0"]
[WhiteElo "2513"]
[BlackElo "2285"]
[TimeControl "180+1"]
[EndTime "11:43:39 PST"]
[Termination "MaevskiyNikolay won by resignation"]

1. d4 {[%clk 0:02:59.6]} 1... Nf6 {[%clk 0:02:55.8]} 2. c4 {[%clk 0:02:59.7]}
2... e6 {[%clk 0:02:54.4]} 3. g3 {[%clk 0:02:58.1]} 3... d5 {[%clk 0:02:51.6]}
4. Bg2 {[%clk 0:02:58.3]} 4... Be7 {[%clk 0:02:51.8]} 5. Nf3 {[%clk 0:02:58.1]}
5... O-O {[%clk 0:02:52.2]} 6. O-O {[%clk 0:02:59]} 6... dxc4 {[%clk 0:02:53]}
7. Qc2 {[%clk 0:02:58.8]} 7... b5 {[%clk 0:02:50.6]} 8. a4 {[%clk 0:02:58.6]}
8... c6 {[%clk 0:02:45.7]} 9. axb5 {[%clk 0:02:58.4]} 9... cxb5 {[%clk
0:02:46.6]} 10. Ng5 {[%clk 0:02:58.2]} 10... h6 {[%clk 0:02:35]} 11. Nxf7 {[%clk
0:02:44.5]} 11... Rxf7 {[%clk 0:02:32.9]} 12. Bxa8 {[%clk 0:02:44.6]} 12... a6
{[%clk 0:02:31]} 13. e3 {[%clk 0:02:34.8]} 13... Nd5 {[%clk 0:02:11.9]} 14. Nc3
{[%clk 0:02:29.7]} 14... Nxc3 {[%clk 0:01:57.2]} 15. Qxc3 {[%clk 0:02:23.1]}
15... Bd7 {[%clk 0:01:45.8]} 16. Bg2 {[%clk 0:02:21.2]} 16... Qc7 {[%clk
0:01:40.2]} 17. d5 {[%clk 0:02:16.8]} 17... Kh8 {[%clk 0:01:37.7]} 18. dxe6
{[%clk 0:02:10.1]} 18... Bxe6 {[%clk 0:01:38.6]} 19. Bd2 {[%clk 0:02:04]} 19...
Bf6 {[%clk 0:01:29.5]} 20. Qc2 {[%clk 0:02:03.6]} 20... Qc8 {[%clk 0:01:19]} 21.
Bc3 {[%clk 0:02:00.2]} 21... Bh3 {[%clk 0:01:17.7]} 22. Qe4 {[%clk 0:01:52.2]}
22... Bxc3 {[%clk 0:01:13.4]} 23. bxc3 {[%clk 0:01:23.5]} 23... Bf5 {[%clk
0:01:10]} 24. Qa8 {[%clk 0:01:18.6]} 24... Rc7 {[%clk 0:01:00.9]} 25. Rfd1
{[%clk 0:01:16.4]} 25... Bd3 {[%clk 0:00:59.9]} 26. Be4 {[%clk 0:01:07]} 26...
Bxe4 {[%clk 0:00:54.7]} 27. Qxe4 {[%clk 0:01:06.1]} 27... Nc6 {[%clk 0:00:55.6]}
28. Rd6 {[%clk 0:01:03.1]} 28... a5 {[%clk 0:00:50.6]} 29. Qd5 {[%clk
0:00:56.9]} 29... b4 {[%clk 0:00:39.7]} 30. cxb4 {[%clk 0:00:51.4]} 30... axb4
{[%clk 0:00:38.9]} 31. Qxc4 {[%clk 0:00:49.7]} 31... Ne5 {[%clk 0:00:37.3]} 32.
Qd5 {[%clk 0:00:45.7]} 1-0

[Event "*** Titled Tuesday Blitz"]
[Site "Chess.com"]
[Date "2021.02.09"]
[Round "9"]
[White "Walter_White_Poland"]
[Black "FMOlexandrProhorov"]
[Result "0-1"]
[WhiteElo "2273"]
[BlackElo "2153"]
[TimeControl "180+1"]
[EndTime "11:43:44 PST"]
[Termination "FMOlexandrProhorov won on time"]

1. e4 {[%clk 0:03:00.9]} 1... c5 {[%clk 0:02:24]} 2. Nf3 {[%clk 0:02:59.2]} 2...
e6 {[%clk 0:02:23.5]} 3. d4 {[%clk 0:02:58.8]} 3... cxd4 {[%clk 0:02:24.3]} 4.
Nxd4 {[%clk 0:02:59.4]} 4... Qb6 {[%clk 0:02:24.9]} 5. Nc3 {[%clk 0:02:51.9]}
5... Bc5 {[%clk 0:02:24.1]} 6. Be3 {[%clk 0:02:23.9]} 6... Nf6 {[%clk
0:02:23.1]} 7. e5 {[%clk 0:01:59.1]} 7... Nd5 {[%clk 0:02:22.7]} 8. Nxd5 {[%clk
0:01:54.1]} 8... exd5 {[%clk 0:02:23.6]} 9. Qg4 {[%clk 0:01:05.7]} 9... Qxb2
{[%clk 0:02:15.7]} 10. Rd1 {[%clk 0:01:05.4]} 10... Qb4+ {[%clk 0:02:00]} 11.
Rd2 {[%clk 0:00:59.8]} 11... O-O {[%clk 0:01:02.8]} 12. Bd3 {[%clk 0:00:39.2]}
12... d6 {[%clk 0:00:45]} 13. Qh4 {[%clk 0:00:19.9]} 13... g6 {[%clk 0:00:43.7]}
14. exd6 {[%clk 0:00:17.6]} 14... Nc6 {[%clk 0:00:40.1]} 15. c3 {[%clk
0:00:06.2]} 15... Qxc3 {[%clk 0:00:37.2]} 16. O-O {[%clk 0:00:04.9]} 16... Nxd4
{[%clk 0:00:36.6]} 17. Bxd4 {[%clk 0:00:03.4]} 17... Qxd4 {[%clk 0:00:36.5]} 18.
Qh6 {[%clk 0:00:01.2]} 18... Qg7 {[%clk 0:00:35.7]} 0-1

[Event "*** Titled Tuesday Blitz"]
[Site "Chess.com"]
[Date "2021.02.09"]
[Round "9"]
[White "FlySooHigh"]
[Black "nrvisakh"]
[Result "0-1"]
[WhiteElo "2596"]
[BlackElo "2763"]
[TimeControl "180+1"]
[EndTime "11:43:47 PST"]
[Termination "nrvisakh won by resignation"]

1. e4 {[%clk 0:03:00.9]} 1... c5 {[%clk 0:02:58.2]} 2. Nf3 {[%clk 0:03:00.7]}
2... d6 {[%clk 0:02:58.5]} 3. Nc3 {[%clk 0:03:00.3]} 3... Nf6 {[%clk 0:02:56.8]}
4. e5 {[%clk 0:03:00.6]} 4... dxe5 {[%clk 0:02:55.9]} 5. Nxe5 {[%clk 0:03:01.5]}
5... Nbd7 {[%clk 0:02:54.8]} 6. d4 {[%clk 0:03:01.2]} 6... e6 {[%clk 0:02:42.9]}
7. Bf4 {[%clk 0:03:00]} 7... a6 {[%clk 0:02:36.6]} 8. Be2 {[%clk 0:02:51.8]}
8... cxd4 {[%clk 0:02:27.8]} 9. Qxd4 {[%clk 0:02:52.7]} 9... Bc5 {[%clk
0:02:28.2]} 10. Qa4 {[%clk 0:02:50.2]} 10... O-O {[%clk 0:02:24.1]} 11. O-O-O
{[%clk 0:02:50.3]} 11... Qe7 {[%clk 0:02:06.9]} 12. Bf3 {[%clk 0:02:43.5]} 12...
Bb4 {[%clk 0:01:39.6]} 13. Ne4 {[%clk 0:02:24.5]} 13... Nd5 {[%clk 0:01:31.4]}
14. Nd3 {[%clk 0:02:15.6]} 14... Nxf4 {[%clk 0:01:03.6]} 15. Nxb4 {[%clk
0:02:12.6]} 15... Ne5 {[%clk 0:00:58.2]} 16. Qa5 {[%clk 0:01:51.4]} 16... b5
{[%clk 0:00:26.1]} 17. Nf6+ {[%clk 0:01:22.6]} 17... Qxf6 {[%clk 0:00:25.6]} 18.
Qc7 {[%clk 0:01:04.6]} 18... Nxf3 {[%clk 0:00:22.3]} 19. gxf3 {[%clk 0:01:05.5]}
19... a5 {[%clk 0:00:20.7]} 20. Nc6 {[%clk 0:01:04.7]} 20... Nd5 {[%clk
0:00:21]} 21. Qd6 {[%clk 0:00:44.7]} 21... Ra6 {[%clk 0:00:18.8]} 22. Rxd5
{[%clk 0:00:38.1]} 22... exd5 {[%clk 0:00:17.7]} 23. Ne7+ {[%clk 0:00:38.3]}
23... Kh8 {[%clk 0:00:17.8]} 24. Ng6+ {[%clk 0:00:38.9]} 24... fxg6 {[%clk
0:00:17.9]} 0-1

[Event "*** Titled Tuesday Blitz"]
[Site "Chess.com"]
[Date "2021.02.09"]
[Round "9"]
[White "VALPARAISO37"]
[Black "queen_iryna"]
[Result "0-1"]
[WhiteElo "2458"]
[BlackElo "2364"]
[TimeControl "180+1"]
[EndTime "11:43:48 PST"]
[Termination "queen_iryna won on time"]

1. d4 {[%clk 0:03:00.9]} 1... d6 {[%clk 0:03:00]} 2. e4 {[%clk 0:02:59.8]} 2...
Nf6 {[%clk 0:02:59.4]} 3. f3 {[%clk 0:02:59.5]} 3... e5 {[%clk 0:02:56]} 4. d5
{[%clk 0:02:59.6]} 4... Be7 {[%clk 0:02:52]} 5. c4 {[%clk 0:02:59.5]} 5... c6
{[%clk 0:02:49.2]} 6. Be3 {[%clk 0:02:59.2]} 6... O-O {[%clk 0:02:48.6]} 7. Nc3
{[%clk 0:02:58.8]} 7... Nh5 {[%clk 0:02:38]} 8. Qd2 {[%clk 0:02:58.5]} 8... h6
{[%clk 0:02:37.8]} 9. Bd3 {[%clk 0:02:57.2]} 9... Bg5 {[%clk 0:02:34.5]} 10.
Nge2 {[%clk 0:02:57.3]} 10... a5 {[%clk 0:02:28.7]} 11. O-O-O {[%clk 0:02:56.1]}
11... Na6 {[%clk 0:02:23]} 12. a3 {[%clk 0:02:54.9]} 12... Nc5 {[%clk
0:02:17.8]} 13. Bc2 {[%clk 0:02:54]} 13... cxd5 {[%clk 0:02:06.4]} 14. Nxd5
{[%clk 0:02:51.9]} 14... Be6 {[%clk 0:02:02.7]} 15. Kb1 {[%clk 0:02:50.3]} 15...
Bxd5 {[%clk 0:01:59.3]} 16. cxd5 {[%clk 0:02:47.9]} 16... b5 {[%clk 0:01:54.8]}
17. g4 {[%clk 0:02:47.2]} 17... Bxe3 {[%clk 0:01:35.3]} 18. Qxe3 {[%clk
0:02:47.2]} 18... Nf4 {[%clk 0:01:35.9]} 19. Qxf4 {[%clk 0:02:46.5]} 19... exf4
{[%clk 0:01:36.8]} 20. Nd4 {[%clk 0:02:41]} 20... b4 {[%clk 0:01:32.4]} 21. a4
{[%clk 0:02:37.7]} 21... b3 {[%clk 0:01:31.6]} 22. Bxb3 {[%clk 0:02:32.7]} 22...
Nxb3 {[%clk 0:01:30.8]} 23. Nxb3 {[%clk 0:02:32.7]} 23... Qb6 {[%clk 0:01:29.6]}
24. Nd4 {[%clk 0:02:30.2]} 24... Rab8 {[%clk 0:01:25.6]} 25. Nb5 {[%clk
0:02:28.8]} 25... Qe3 {[%clk 0:01:23.6]} 26. Rhf1 {[%clk 0:02:27.4]} 26... Qb3
{[%clk 0:01:20.5]} 27. Rd4 {[%clk 0:02:21.6]} 27... Rfc8 {[%clk 0:01:14.3]} 28.
Rf2 {[%clk 0:02:14.5]} 28... Rc4 {[%clk 0:01:05.9]} 29. Rxc4 {[%clk 0:02:10.6]}
29... Qxc4 {[%clk 0:01:06.8]} 30. Nxd6 {[%clk 0:02:08.2]} 30... Qc5 {[%clk
0:01:05.5]} 31. Rc2 {[%clk 0:02:03.3]} 31... Qxd6 {[%clk 0:01:05.7]} 32. Rc8+
{[%clk 0:01:56.7]} 32... Rxc8 {[%clk 0:01:05.2]} 0-1

[Event "*** Titled Tuesday Blitz"]
[Site "Chess.com"]
[Date "2021.02.09"]
[Round "9"]
[White "fabianvivasz"]
[Black "Atco84"]
[Result "0-1"]
[WhiteElo "2337"]
[BlackElo "2482"]
[TimeControl "180+1"]
[EndTime "11:43:50 PST"]
[Termination "Atco84 won by resignation"]

1. e4 {[%clk 0:03:00.9]} 1... c5 {[%clk 0:02:59.9]} 2. Nc3 {[%clk 0:02:59.5]}
2... d6 {[%clk 0:02:59.8]} 3. d4 {[%clk 0:02:54.6]} 3... cxd4 {[%clk 0:02:59]}
4. Qxd4 {[%clk 0:02:55.5]} 4... Nc6 {[%clk 0:02:58.6]} 5. Qd2 {[%clk 0:02:55.4]}
5... Nf6 {[%clk 0:02:54.5]} 6. b3 {[%clk 0:02:53.3]} 6... g6 {[%clk 0:02:49.6]}
7. Bb2 {[%clk 0:02:50.3]} 7... Bg7 {[%clk 0:02:50.2]} 8. O-O-O {[%clk
0:02:48.6]} 8... O-O {[%clk 0:02:49.9]} 9. f3 {[%clk 0:02:45.7]} 9... Bd7 {[%clk
0:02:45.2]} 10. h4 {[%clk 0:02:40.3]} 10... h5 {[%clk 0:02:43]} 11. Nh3 {[%clk
0:02:27.2]} 11... Ne5 {[%clk 0:02:30.5]} 12. Ng5 {[%clk 0:02:22.5]} 12... Rc8
{[%clk 0:02:20.4]} 13. g4 {[%clk 0:02:13.9]} 13... hxg4 {[%clk 0:02:17.8]} 14.
f4 {[%clk 0:02:13.5]} 14... Nf3 {[%clk 0:02:09.3]} 15. Nxf3 {[%clk 0:02:12]}
15... gxf3 {[%clk 0:02:10.2]} 16. f5 {[%clk 0:02:00.4]} 16... Nh5 {[%clk
0:01:50.9]} 17. fxg6 {[%clk 0:01:29.6]} 17... fxg6 {[%clk 0:01:41.3]} 18. Rg1
{[%clk 0:01:23.6]} 18... Qe8 {[%clk 0:00:55.3]} 19. Bc4+ {[%clk 0:01:01.8]}
19... Rxc4 {[%clk 0:00:52.5]} 20. bxc4 {[%clk 0:01:02.7]} 20... Bh3 {[%clk
0:00:41.4]} 21. Nd5 {[%clk 0:00:47.6]} 21... f2 {[%clk 0:00:35.5]} 22. Rxg6
{[%clk 0:00:44.5]} 22... f1=Q {[%clk 0:00:28.2]} 23. Rxf1 {[%clk 0:00:42]} 23...
Rxf1+ {[%clk 0:00:27.7]} 24. Qd1 {[%clk 0:00:36.3]} 24... Qxg6 {[%clk
0:00:26.9]} 25. Nxe7+ {[%clk 0:00:36.1]} 25... Kf7 {[%clk 0:00:27.2]} 26. Qxf1+
{[%clk 0:00:32.2]} 26... Bxf1 {[%clk 0:00:26.6]} 27. Nxg6 {[%clk 0:00:31.4]}
27... Kxg6 {[%clk 0:00:22]} 0-1

[Event "*** Titled Tuesday Blitz"]
[Site "Chess.com"]
[Date "2021.02.09"]
[Round "9"]
[White "juancruzarias"]
[Black "TomasKapitanchuk"]
[Result "1/2-1/2"]
[WhiteElo "2627"]
[BlackElo "2518"]
[TimeControl "180+1"]
[EndTime "11:43:52 PST"]
[Termination "Game drawn by repetition"]

1. d4 {[%clk 0:02:56.4]} 1... Nf6 {[%clk 0:02:59.8]} 2. Nf3 {[%clk 0:02:56.8]}
2... e6 {[%clk 0:02:59.6]} 3. e3 {[%clk 0:02:57.3]} 3... c5 {[%clk 0:02:58.4]}
4. Bd3 {[%clk 0:02:57.2]} 4... b6 {[%clk 0:02:58.5]} 5. O-O {[%clk 0:02:56.8]}
5... Bb7 {[%clk 0:02:59.1]} 6. c4 {[%clk 0:02:57.4]} 6... Be7 {[%clk 0:02:56.3]}
7. Nc3 {[%clk 0:02:56.5]} 7... d6 {[%clk 0:02:55.8]} 8. d5 {[%clk 0:02:56.5]}
8... exd5 {[%clk 0:02:55.1]} 9. cxd5 {[%clk 0:02:55.7]} 9... O-O {[%clk
0:02:55]} 10. e4 {[%clk 0:02:56.2]} 10... Re8 {[%clk 0:02:55.2]} 11. h3 {[%clk
0:02:55.9]} 11... Bf8 {[%clk 0:02:55.2]} 12. Bf4 {[%clk 0:02:54.9]} 12... a6
{[%clk 0:02:53.5]} 13. a4 {[%clk 0:02:55.3]} 13... c4 {[%clk 0:02:51.5]} 14. Bc2
{[%clk 0:02:52.2]} 14... Nbd7 {[%clk 0:02:51.8]} 15. Nd4 {[%clk 0:02:46.4]}
15... Nc5 {[%clk 0:02:50.2]} 16. Re1 {[%clk 0:02:44.8]} 16... g6 {[%clk
0:02:44]} 17. Bh2 {[%clk 0:02:19.1]} 17... Bg7 {[%clk 0:02:43.4]} 18. f4 {[%clk
0:02:17.5]} 18... Nxd5 {[%clk 0:02:39.5]} 19. exd5 {[%clk 0:02:00.2]} 19...
Rxe1+ {[%clk 0:02:39]} 20. Qxe1 {[%clk 0:02:01.1]} 20... Bxd4+ {[%clk
0:02:39.6]} 21. Kh1 {[%clk 0:02:01.7]} 21... Qd7 {[%clk 0:02:31.9]} 22. f5
{[%clk 0:02:01.5]} 22... Re8 {[%clk 0:02:29.4]} 23. Qh4 {[%clk 0:01:58.5]} 23...
Bg7 {[%clk 0:02:10.7]} 24. Qxc4 {[%clk 0:01:57.8]} 24... Be5 {[%clk 0:02:01.7]}
25. Bxe5 {[%clk 0:01:43]} 25... Rxe5 {[%clk 0:02:02.6]} 26. b4 {[%clk
0:01:43.2]} 26... b5 {[%clk 0:01:38.8]} 27. axb5 {[%clk 0:01:34.8]} 27... axb5
{[%clk 0:01:39.7]} 28. Qxb5 {[%clk 0:01:26.6]} 28... Qe7 {[%clk 0:01:16.2]} 29.
bxc5 {[%clk 0:00:59.3]} 29... Re1+ {[%clk 0:01:16.1]} 30. Rxe1 {[%clk
0:00:59.7]} 30... Qxe1+ {[%clk 0:01:17]} 31. Kh2 {[%clk 0:00:59.9]} 31... Qe5+
{[%clk 0:01:17.9]} 32. Kh1 {[%clk 0:00:51.1]} 32... Qe1+ {[%clk 0:01:16.6]} 33.
Kh2 {[%clk 0:00:50.9]} 33... Qe5+ {[%clk 0:01:17]} 34. Kg1 {[%clk 0:00:31.7]}
34... Qxc3 {[%clk 0:01:04.1]} 35. Qxb7 {[%clk 0:00:25.3]} 35... Qe1+ {[%clk
0:01:00.7]} 36. Kh2 {[%clk 0:00:23]} 36... Qe5+ {[%clk 0:01:01.6]} 37. Kg1
{[%clk 0:00:20.5]} 37... Qe1+ {[%clk 0:01:01.3]} 38. Kh2 {[%clk 0:00:21]} 38...
Qe5+ {[%clk 0:01:02.2]} 39. Kh1 {[%clk 0:00:20.4]} 39... Qe1+ {[%clk 0:01:01.2]}
40. Kh2 {[%clk 0:00:20.6]} 1/2-1/2

[Event "*** Titled Tuesday Blitz"]
[Site "Chess.com"]
[Date "2021.02.09"]
[Round "9"]
[White "ElCoachRene"]
[Black "KruHor"]
[Result "0-1"]
[WhiteElo "2191"]
[BlackElo "2530"]
[TimeControl "180+1"]
[EndTime "11:43:57 PST"]
[Termination "KruHor won by resignation"]

1. d4 {[%clk 0:03:00.9]} 1... Nf6 {[%clk 0:02:59]} 2. Bf4 {[%clk 0:03:01.3]}
2... h6 {[%clk 0:02:56.9]} 3. e3 {[%clk 0:03:00.9]} 3... d6 {[%clk 0:02:52.5]}
4. h3 {[%clk 0:03:00.9]} 4... Nc6 {[%clk 0:02:51.8]} 5. Nf3 {[%clk 0:02:59.4]}
5... Bf5 {[%clk 0:02:51.1]} 6. Bb5 {[%clk 0:02:56.8]} 6... a6 {[%clk 0:02:48.4]}
7. Ba4 {[%clk 0:02:51.3]} 7... e6 {[%clk 0:02:46.3]} 8. O-O {[%clk 0:02:50.7]}
8... Be7 {[%clk 0:02:45.9]} 9. c4 {[%clk 0:02:49.8]} 9... O-O {[%clk 0:02:45.3]}
10. Nc3 {[%clk 0:02:49.7]} 10... Na5 {[%clk 0:02:43.4]} 11. Qe2 {[%clk
0:02:42.9]} 11... c6 {[%clk 0:02:40.3]} 12. b4 {[%clk 0:02:40.6]} 12... Nxc4
{[%clk 0:02:39.1]} 13. e4 {[%clk 0:02:29.9]} 13... Bh7 {[%clk 0:02:31.2]} 14.
Bb3 {[%clk 0:02:27.6]} 14... Nb6 {[%clk 0:02:20.1]} 15. e5 {[%clk 0:02:24.7]}
15... Nfd5 {[%clk 0:02:19]} 16. Nxd5 {[%clk 0:02:18.2]} 16... Nxd5 {[%clk
0:02:18.5]} 17. Bd2 {[%clk 0:02:16.9]} 17... dxe5 {[%clk 0:02:17.5]} 18. dxe5
{[%clk 0:02:16.4]} 18... Bxb4 {[%clk 0:02:14.1]} 19. Bxb4 {[%clk 0:02:08.1]}
19... Nxb4 {[%clk 0:02:13.6]} 20. Rad1 {[%clk 0:02:08.4]} 20... Nd5 {[%clk
0:02:12.7]} 21. Rfe1 {[%clk 0:02:07]} 21... Qa5 {[%clk 0:02:10.1]} 22. g3 {[%clk
0:02:05.5]} 22... Rad8 {[%clk 0:02:09.2]} 23. Rd4 {[%clk 0:01:59.4]} 23... Ne7
{[%clk 0:02:03.1]} 24. Rg4 {[%clk 0:01:54.4]} 24... Bf5 {[%clk 0:01:56.8]} 25.
Rh4 {[%clk 0:01:52.5]} 25... Ng6 {[%clk 0:01:55.8]} 26. Rh5 {[%clk 0:01:50.5]}
26... Rd7 {[%clk 0:01:44.7]} 27. g4 {[%clk 0:01:50.3]} 27... Nf4 {[%clk
0:01:43.6]} 28. Qe3 {[%clk 0:01:47.1]} 28... Nxh5 {[%clk 0:01:43.1]} 29. gxf5
{[%clk 0:01:46.9]} 29... exf5 {[%clk 0:01:42.3]} 30. Bc2 {[%clk 0:01:44.5]}
30... Re7 {[%clk 0:01:33.3]} 31. Bxf5 {[%clk 0:01:41.8]} 31... Nf6 {[%clk
0:01:32.8]} 32. Qf4 {[%clk 0:01:40.2]} 32... Nd5 {[%clk 0:01:31]} 33. Qg3 {[%clk
0:01:35.8]} 33... Rfe8 {[%clk 0:01:26.8]} 34. Re4 {[%clk 0:01:26.1]} 34... Qxa2
{[%clk 0:01:09.5]} 35. Rg4 {[%clk 0:01:25.8]} 35... f6 {[%clk 0:01:08.4]} 36.
exf6 {[%clk 0:01:23.2]} 36... Nxf6 {[%clk 0:01:07.6]} 37. Rg6 {[%clk 0:01:18.9]}
37... a5 {[%clk 0:01:03.5]} 38. Rxf6 {[%clk 0:01:17.7]} 38... Qa1+ {[%clk
0:01:03]} 39. Kg2 {[%clk 0:01:13.7]} 39... Qxf6 {[%clk 0:01:02.2]} 40. Bg6
{[%clk 0:01:14.3]} 40... Rf8 {[%clk 0:01:01.2]} 41. Bh5 {[%clk 0:01:10.6]} 41...
a4 {[%clk 0:00:59.3]} 42. Nh4 {[%clk 0:01:06.3]} 42... Qxf2+ {[%clk 0:00:54.7]}
43. Qxf2 {[%clk 0:01:03.2]} 43... Rxf2+ {[%clk 0:00:54.6]} 44. Kxf2 {[%clk
0:01:03.9]} 44... a3 {[%clk 0:00:54.4]} 45. Bd1 {[%clk 0:00:57]} 45... a2 {[%clk
0:00:53.8]} 46. Bb3+ {[%clk 0:00:56.9]} 46... Rf7+ {[%clk 0:00:53.5]} 47. Kg2
{[%clk 0:00:46]} 47... a1=Q {[%clk 0:00:51.5]} 0-1

[Event "*** Titled Tuesday Blitz"]
[Site "Chess.com"]
[Date "2021.02.09"]
[Round "9"]
[White "Spartakus1975"]
[Black "Orest_Vovk"]
[Result "1-0"]
[WhiteElo "2577"]
[BlackElo "2422"]
[TimeControl "180+1"]
[EndTime "11:43:59 PST"]
[Termination "Spartakus1975 won on time"]

1. e4 {[%clk 0:03:00.9]} 1... g5 {[%clk 0:02:11.5]} 2. d4 {[%clk 0:02:58.9]}
2... g4 {[%clk 0:02:10.6]} 3. Qxg4 {[%clk 0:02:50.5]} 3... d5 {[%clk 0:02:09.7]}
4. Qe2 {[%clk 0:02:49.6]} 4... dxe4 {[%clk 0:02:09.7]} 5. Qxe4 {[%clk
0:02:49.6]} 5... Nf6 {[%clk 0:02:10.2]} 6. Qd3 {[%clk 0:02:49.7]} 6... Nc6
{[%clk 0:02:09.7]} 7. c3 {[%clk 0:02:47.2]} 7... Qd5 {[%clk 0:02:05.7]} 8. Nf3
{[%clk 0:02:42.3]} 8... Bf5 {[%clk 0:02:00.1]} 9. Qb5 {[%clk 0:02:41.8]} 9...
Qe6+ {[%clk 0:01:54.9]} 10. Be3 {[%clk 0:02:24.1]} 10... O-O-O {[%clk
0:01:49.8]} 11. Nbd2 {[%clk 0:02:20.1]} 11... Nd5 {[%clk 0:01:16.6]} 12. Bc4
{[%clk 0:01:52.1]} 12... Bh6 {[%clk 0:01:03]} 13. O-O-O {[%clk 0:01:42.7]} 13...
Bxe3 {[%clk 0:00:52.4]} 14. fxe3 {[%clk 0:01:41.5]} 14... a6 {[%clk 0:00:52.4]}
15. Qc5 {[%clk 0:01:05.9]} 15... b6 {[%clk 0:00:51.1]} 16. Qa3 {[%clk
0:00:58.7]} 16... Qxe3 {[%clk 0:00:13.7]} 17. Rhe1 {[%clk 0:00:56.7]} 17... Qf2
{[%clk 0:00:08.7]} 18. Re2 {[%clk 0:00:49.7]} 18... Qxe2 {[%clk 0:00:03.8]} 19.
Qxa6+ {[%clk 0:00:47.4]} 19... Kb8 {[%clk 0:00:03.4]} 20. Bxe2 {[%clk 0:00:48]}
20... Nf4 {[%clk 0:00:02.2]} 21. Bf1 {[%clk 0:00:45.1]} 21... Na5 {[%clk
0:00:02]} 22. g3 {[%clk 0:00:43.5]} 22... Ne6 {[%clk 0:00:02.1]} 23. Ne5 {[%clk
0:00:36.8]} 23... Bg6 {[%clk 0:00:01]} 24. Bg2 {[%clk 0:00:34.5]} 1-0

[Event "*** Titled Tuesday Blitz"]
[Site "Chess.com"]
[Date "2021.02.09"]
[Round "9"]
[White "LiamVrolijk"]
[Black "AlexTriapishko"]
[Result "1/2-1/2"]
[WhiteElo "2892"]
[BlackElo "2866"]
[TimeControl "180+1"]
[EndTime "11:44:04 PST"]
[Termination "Game drawn by repetition"]

1. d4 {[%clk 0:03:00.9]} 1... Nf6 {[%clk 0:02:43.3]} 2. c4 {[%clk 0:02:59.8]}
2... e6 {[%clk 0:02:40.8]} 3. Nf3 {[%clk 0:02:59.5]} 3... d5 {[%clk 0:02:39.5]}
4. Nc3 {[%clk 0:02:59.6]} 4... Bb4 {[%clk 0:02:37.6]} 5. cxd5 {[%clk 0:02:58.8]}
5... exd5 {[%clk 0:02:36.9]} 6. Bf4 {[%clk 0:02:59.2]} 6... c6 {[%clk
0:02:32.2]} 7. e3 {[%clk 0:02:49.4]} 7... Bf5 {[%clk 0:02:31.9]} 8. Nh4 {[%clk
0:02:36.7]} 8... Be4 {[%clk 0:02:20.6]} 9. Qb3 {[%clk 0:02:34.9]} 9... Qb6
{[%clk 0:02:18.5]} 10. f3 {[%clk 0:02:27]} 10... Bg6 {[%clk 0:02:09.6]} 11. g4
{[%clk 0:02:22.5]} 11... Nbd7 {[%clk 0:01:53.4]} 12. Nxg6 {[%clk 0:02:21.9]}
12... hxg6 {[%clk 0:01:53]} 13. h4 {[%clk 0:02:22.4]} 13... Nf8 {[%clk
0:01:19.3]} 14. Bd3 {[%clk 0:02:17.2]} 14... Ne6 {[%clk 0:01:18.6]} 15. Bg3
{[%clk 0:02:09.2]} 15... O-O-O {[%clk 0:01:04.3]} 16. O-O-O {[%clk 0:02:04.4]}
16... Bd6 {[%clk 0:01:03]} 17. Qxb6 {[%clk 0:01:58.8]} 17... axb6 {[%clk
0:01:03.9]} 18. Bf2 {[%clk 0:01:59]} 18... b5 {[%clk 0:00:59.4]} 19. Kb1 {[%clk
0:01:49.9]} 19... Kb8 {[%clk 0:00:49]} 20. Ne2 {[%clk 0:01:43.2]} 20... Nd7
{[%clk 0:00:44.8]} 21. Ng3 {[%clk 0:01:38.3]} 21... Nb6 {[%clk 0:00:44.3]} 22.
h5 {[%clk 0:01:37.2]} 22... gxh5 {[%clk 0:00:43.6]} 23. gxh5 {[%clk 0:01:27.6]}
23... Nc4 {[%clk 0:00:42.7]} 24. Nf5 {[%clk 0:01:27.4]} 24... Bc7 {[%clk
0:00:42.9]} 25. Kc2 {[%clk 0:00:41]} 25... Rde8 {[%clk 0:00:35.3]} 26. Rdg1
{[%clk 0:00:40.3]} 26... Reg8 {[%clk 0:00:26.4]} 27. Ne7 {[%clk 0:00:30]} 27...
Re8 {[%clk 0:00:25.6]} 28. Nf5 {[%clk 0:00:30.7]} 28... Reg8 {[%clk 0:00:26.1]}
29. Ne7 {[%clk 0:00:17.7]} 29... Re8 {[%clk 0:00:26.1]} 30. Nf5 {[%clk
0:00:18.4]} 1/2-1/2